bitfinex/quotes_BTCUSD_20220211
["timestamp","ask_amount","ask_price","bid_price","bid_amount"]
[1644550103690,0.30453755,43274.0,43266.0,0.057811]
[1644550103889,0.30515033,43274.0,43267.0,0.324735]
[1644550104091,0.19772067,43271.0,43267.0,0.324735]
[1644550104289,0.00061278,43274.0,43267.0,0.324735]
[1644550104491,0.00061278,43274.0,43268.0,0.05781]
[1644550104689,0.00061278,43274.0,43269.0,0.324735]
[1644550104889,0.61726083,43275.0,43268.0,0.173431]
[1644550105089,0.61726083,43275.0,43269.0,0.324735]
[1644550105289,0.61726083,43275.0,43268.0,0.173431]
[1644550105489,0.61726083,43275.0,43269.0,0.324735]
[1644550105691,0.61726083,43275.0,43268.0,0.173431]
[1644550105892,0.61726083,43275.0,43269.0,0.05780737]
[1644550106089,0.61726083,43275.0,43270.0,0.382542]
[1644550106289,0.61726083,43275.0,43271.0,0.057807]
[1644550106491,0.61726083,43275.0,43272.0,0.324735]
[1644550106737,0.29924243,43275.0,43271.0,0.057807]
[1644550106936,0.29924243,43275.0,43272.0,0.324735]
[1644550107139,0.29924243,43275.0,43271.0,0.057807]
[1644550107338,0.29924243,43275.0,43267.0,0.2423315]
[1644550107538,0.24343949,43272.0,43268.0,0.324735]
[1644550107738,0.29968851,43275.0,43268.0,0.382544]
[1644550107939,0.64374818,43275.0,43268.0,0.057809]
[1644550108338,0.29924243,43275.0,43268.0,0.057809]
[1644550108541,0.29924243,43275.0,43270.0,0.057807]
[1644550108838,0.29924243,43275.0,43271.0,0.324735]
[1644550108839,0.00044608,43274.0,43271.0,0.324735]
[1644550109636,0.58507576,43275.0,43272.0,0.324735]
[1644550109837,0.58552184,43275.0,43270.0,0.057807]
[1644550110238,0.58552184,43275.0,43269.0,0.05780797]
[1644550110893,0.58507576,43275.0,43269.0,0.05780797]
[1644550111097,0.00061444,43274.0,43271.0,0.324735]
[1644550111495,0.4938822,43275.0,43272.0,0.324735]
[1644550111696,0.20804887,43275.0,43269.0,0.05780797]
[1644550111896,0.20804887,43275.0,43270.0,0.324735]
[1644550112996,0.20804887,43275.0,43270.0,0.382544]
[1644550116042,0.00161441,43276.0,43271.0,0.11560821]
[1644550116245,0.00161441,43276.0,43272.0,0.440342]
[1644550116440,0.00161441,43276.0,43273.0,0.324735]
[1644550116640,0.00161441,43276.0,43272.0,0.115607]
[1644550116841,0.001,43276.0,43273.0,0.324735]
[1644550117040,0.35441691,43276.0,43273.0,0.324735]
[1644550117239,0.35441691,43276.0,43272.0,0.115607]
[1644550117441,0.35441691,43276.0,43273.0,0.324735]
[1644550117641,0.35441691,43276.0,43272.0,0.115607]
[1644550117894,0.001,43276.0,43274.0,0.382539]
[1644550118296,0.00144575,43276.0,43274.0,0.482539]
[1644550119300,0.1204,43287.0,43275.0,0.057799]
[1644550119497,0.00178259,43287.0,43278.0,0.057787]
[1644550119695,0.00178259,43287.0,43277.0,0.115574]
[1644550119696,0.00178259,43287.0,43284.0,0.07162918]
[1644550119895,0.00178259,43287.0,43284.0,0.39636418]
[1644550120496,0.65878427,43292.0,43284.0,0.39636418]
[1644550120796,0.00044562,43287.0,43284.0,0.324735]
[1644550121096,0.00044562,43287.0,43284.0,0.382518]
[1644550121745,0.1219,43295.0,43284.0,0.71760679]
[1644550121944,0.00044562,43287.0,43284.0,0.88099806]
[1644550122546,0.00044562,43287.0,43284.0,1.38099806]
[1644550122940,0.61012718,43298.0,43284.0,1.38099806]
[1644550123141,0.00044562,43287.0,43284.0,1.38099806]
[1644550123742,0.00044562,43287.0,43284.0,1.21760679]
[1644550123945,0.00044562,43287.0,43284.0,0.824735]
[1644550124146,0.05,43292.0,43278.0,0.11559045]
[1644550124443,0.61012718,43298.0,43278.0,0.11559045]
[1644550124444,0.32109725,43285.0,43279.0,0.324735]
[1644550124843,0.32109725,43285.0,43278.0,0.11559045]
[1644550125043,0.32109725,43285.0,43279.0,0.324735]
[1644550125245,0.32109725,43285.0,43281.0,0.324735]
[1644550125246,0.07,43285.0,43281.0,0.324735]
[1644550125687,0.00061498,43284.0,43281.0,0.374735]
[1644550125888,0.00061498,43284.0,43282.0,0.324735]
[1644550126087,0.00061498,43284.0,43282.0,0.39403518]
[1644550126290,0.00061498,43284.0,43283.0,0.057786]
[1644550126489,0.07,43285.0,43283.0,0.382521]
[1644550126694,0.07061498,43285.0,43284.0,0.324735]
[1644550127490,0.07061498,43285.0,43284.0,0.382525]
[1644550127688,0.07,43285.0,43284.0,0.482525]
[1644550128490,0.07,43285.0,43284.0,0.382525]
[1644550131144,0.065,43285.0,43284.0,0.382525]
[1644550131550,0.065,43285.0,43276.0,0.115588]
[1644550131748,0.287874,43284.0,43277.0,0.05780353]
[1644550131947,0.287874,43283.0,43274.0,1.02387047]
[1644550132143,0.065,43285.0,43274.0,1.02387047]
[1644550132344,0.35165663,43280.0,43274.0,1.02387047]
[1644550132545,0.35165663,43280.0,43275.0,0.324735]
[1644550132747,0.35165663,43280.0,43274.0,0.0658]
[1644550132993,0.35165663,43280.0,43274.0,0.118603]
[1644550133392,0.35165663,43280.0,43275.0,0.0578061]
[1644550133993,0.000615,43279.0,43275.0,0.0578061]
[1644550134793,0.0005171,43279.0,43275.0,0.0578061]
[1644550134998,0.35165663,43280.0,43275.0,0.0578061]
[1644550135194,0.000615,43279.0,43275.0,0.0578061]
[1644550135897,0.000615,43279.0,43273.0,0.17341005]
[1644550135898,0.287874,43278.0,43273.0,0.11560705]
[1644550136095,0.31485039,43277.0,43271.0,0.324735]
[1644550136297,0.31485039,43277.0,43272.0,0.324735]
[1644550136494,0.31485039,43277.0,43271.0,0.324735]
[1644550136947,0.31985319,43273.0,43270.0,0.05781]
[1644550137150,0.31485039,43277.0,43272.0,0.05780804]
[1644550137345,0.287874,43276.0,43272.0,0.05780804]
[1644550137546,0.065,43285.0,43272.0,0.13073421]
[1644550137748,0.065,43285.0,43280.0,0.07950869]
[1644550137946,0.065,43285.0,43281.0,0.05779]
[1644550138546,0.35280232,43285.0,43281.0,0.05779]
[1644550138847,0.3534173,43285.0,43281.0,0.115577]
[1644550139046,0.06561498,43285.0,43282.0,0.057792]
[1644550139247,0.06561498,43285.0,43283.0,0.057793]
[1644550139650,0.065,43285.0,43284.0,0.324735]
[1644550139847,0.065,43285.0,43284.0,0.86014935]
[1644550140047,0.065,43285.0,43284.0,0.440293]
[1644550140248,0.065,43285.0,43284.0,0.324735]
[1644550140490,0.065,43285.0,43282.0,0.11558141]
[1644550140789,0.065,43285.0,43283.0,0.11558234]
[1644550140989,0.065,43285.0,43284.0,0.324735]
[1644550141389,0.065,43285.0,43284.0,0.382526]
[1644550144541,0.065,43285.0,43284.0,0.324735]
[1644550144943,0.065,43285.0,43275.0,0.11560468]
[1644550144944,0.287874,43284.0,43275.0,0.11560468]
[1644550145141,0.287874,43284.0,43269.0,0.00056574]
[1644550145142,0.05,43280.0,43269.0,0.00056574]
[1644550145339,0.287874,43280.0,43269.0,0.00056574]
[1644550145539,0.387874,43280.0,43269.0,0.00056574]
[1644550145740,0.2978793,43275.0,43267.0,0.14643323]
[1644550145940,0.2978793,43275.0,43269.0,0.00056574]
[1644550146143,0.2978793,43275.0,43270.0,0.324735]
[1644550146338,0.2978793,43275.0,43271.0,0.44035144]
[1644550146539,0.2978793,43275.0,43272.0,0.324735]
[1644550146742,0.32661506,43279.0,43271.0,0.17341944]
[1644550146940,0.0463,43283.0,43271.0,0.17341944]
[1644550146941,0.32661506,43282.0,43271.0,0.17341944]
[1644550147142,0.00061495,43280.0,43274.0,0.07844049]
[1644550147345,0.00061495,43280.0,43276.0,0.05779881]
[1644550147541,0.00061495,43280.0,43277.0,0.324735]
[1644550147743,0.00061495,43280.0,43277.0,0.382531]
[1644550148193,0.33288746,43283.0,43279.0,0.324735]
[1644550148397,0.000615,43281.0,43275.0,0.11559]
[1644550148594,0.000615,43281.0,43276.0,0.324735]
[1644550148795,0.000615,43281.0,43276.0,0.424735]
[1644550148993,0.000615,43281.0,43278.0,0.115592]
[1644550149194,0.000615,43281.0,43280.0,0.05779682]
[1644550149493,0.41481201,43285.0,43280.0,0.05779682]
[1644550149695,0.00061499,43282.0,43280.0,0.05779682]
[1644550150493,0.26707458,43283.0,43280.0,0.05779682]
[1644550150900,0.00061499,43283.0,43280.0,0.05779682]
[1644550151740,0.41481201,43285.0,43280.0,0.07815904]
[1644550151943,0.00061498,43284.0,43280.0,0.07815904]
[1644550152144,0.33858152,43283.0,43280.0,0.07815904]
[1644550153744,0.33858152,43283.0,43280.0,0.09852126]
[1644550153942,0.33794152,43283.0,43280.0,0.07815904]
[1644550156296,0.33794152,43283.0,43280.0,0.09852126]
[1644550156495,0.33794152,43283.0,43280.0,0.07815904]
[1644550157102,0.12061498,43284.0,43280.0,0.07815904]
[1644550157703,0.12,43284.0,43281.0,0.3825292]
[1644550157901,0.12,43284.0,43283.0,0.324735]
[1644550158101,0.12061498,43284.0,43283.0,0.324735]
[1644550158300,0.12061498,43284.0,43281.0,0.0577942]
[1644550158902,0.02,43284.0,43281.0,0.0577942]
[1644550159863,0.02,43284.0,43281.0,0.07815642]
[1644550160063,0.02,43284.0,43283.0,0.324735]
[1644550160268,0.02,43284.0,43283.0,0.6524934]
[1644550160865,0.02,43284.0,43283.0,0.7524934]
[1644550161066,0.02,43284.0,43283.0,0.8680614]
[1644550161464,0.02,43284.0,43283.0,0.540303]
[1644550161965,0.02,43284.0,43283.0,0.56066522]
[1644550162366,0.02007956,43284.0,43283.0,0.56066522]
[1644550164094,0.02007956,43284.0,43283.0,0.89141985]
[1644550165092,0.02007956,43284.0,43283.0,0.56066522]
[1644550165892,0.02007956,43284.0,43283.0,0.58102744]
[1644550166092,0.02007956,43284.0,43283.0,0.56066522]
[1644550167445,0.02007956,43284.0,43283.0,0.46066522]
[1644550168247,0.02007956,43284.0,43283.0,0.34509722]
[1644550168447,0.02007956,43284.0,43283.0,0.02036222]
[1644550168748,0.60767934,43284.0,43283.0,0.02036222]
[1644550169146,1.31098557,43284.0,43283.0,0.02036222]
[1644550169947,1.31098557,43284.0,43283.0,0.04072444]
[1644550170247,1.31098557,43284.0,43283.0,0.02036222]
[1644550170500,1.01125979,43284.0,43283.0,0.02036222]
[1644550171297,1.34326011,43284.0,43283.0,0.02036222]
[1644550171497,1.01125979,43284.0,43283.0,0.02036222]
[1644550171894,1.01125979,43284.0,43283.0,0.04072444]
[1644550172295,1.01125979,43284.0,43283.0,0.02036222]
[1644550173896,1.01125979,43284.0,43283.0,0.04072444]
[1644550174150,1.01125979,43284.0,43283.0,0.02036222]
[1644550174747,1.34207786,43284.0,43283.0,0.02036222]
[1644550174947,1.50399686,43284.0,43283.0,0.02036222]
[1644550175146,1.17317879,43284.0,43283.0,0.02036222]
[1644550175347,1.22317879,43284.0,43283.0,0.02036222]
[1644550175548,1.32233525,43284.0,43283.0,0.02036222]
[1644550175947,1.32233525,43284.0,43283.0,0.04072444]
[1644550176149,1.38014625,43284.0,43283.0,0.02036222]
[1644550177995,1.38014625,43284.0,43283.0,0.04066281]
[1644550178198,1.38014625,43284.0,43283.0,0.02036222]
[1644550179599,1.32233525,43284.0,43283.0,0.02036222]
[1644550179997,1.32233525,43284.0,43283.0,0.04066281]
[1644550180200,1.37233525,43284.0,43283.0,0.02030059]
[1644550181000,1.37218137,43284.0,43283.0,0.02030059]
[1644550182045,1.37218137,43284.0,43283.0,0.04060118]
[1644550182248,1.37218137,43284.0,43283.0,0.02030059]
[1644550182648,0.95,43283.0,43269.0,0.00056574]
[1644550182850,1.37218137,43284.0,43269.0,0.00056574]
[1644550182851,0.29427915,43274.0,43269.0,0.00056574]
[1644550183047,0.37217226,43271.0,43263.0,0.215623]
[1644550183249,0.66004626,43271.0,43269.0,0.00056574]
[1644550184250,0.66004626,43271.0,43267.0,0.05781926]
[1644550185049,0.66004626,43271.0,43262.0,0.11563994]
[1644550185251,0.66004626,43271.0,43268.0,0.05781728]
[1644550186895,0.66004626,43271.0,43268.0,0.05838184]
[1644550187500,0.1206,43277.0,43268.0,0.05838184]
[1644550187701,0.1206,43277.0,43262.0,0.115628]
[1644550187702,0.287874,43276.0,43271.0,0.05781102]
[1644550187900,0.287874,43278.0,43271.0,0.05781102]
[1644550188297,0.14000056,43280.0,43273.0,0.057806]
[1644550188298,0.287874,43279.0,43273.0,0.057806]
[1644550188498,0.287874,43279.0,43273.0,0.17341463]
[1644550188704,0.287874,43279.0,43274.0,0.05780432]
[1644550188999,0.01830698,43280.0,43274.0,0.05780432]
[1644550189253,0.01830698,43280.0,43274.0,0.324735]
[1644550189453,0.0189216,43280.0,43274.0,0.324735]
[1644550189652,0.0189216,43280.0,43274.0,0.440343]
[1644550189852,0.0189216,43280.0,43276.0,0.324735]
[1644550190052,0.287874,43277.0,43275.0,0.05780523]
[1644550190253,0.287874,43277.0,43270.0,0.11571901]
[1644550190551,0.00061463,43280.0,43270.0,0.11571901]
[1644550190754,0.00061463,43280.0,43271.0,0.057808]
[1644550190954,0.00061463,43280.0,43272.0,0.382541]
[1644550191153,0.00061463,43280.0,43273.0,0.324735]
[1644550191356,0.287874,43279.0,43272.0,0.057806]
[1644550191554,0.149107,43282.0,43273.0,0.324735]
[1644550191754,0.00061462,43280.0,43274.0,0.324735]
[1644550191955,0.00061462,43280.0,43274.0,0.4403411]
[1644550192154,0.00061462,43280.0,43275.0,0.324735]
[1644550192557,0.58352071,43284.0,43276.0,0.324735]
[1644550192756,0.49214133,43283.0,43276.0,0.05780435]
[1644550192993,0.00061464,43280.0,43276.0,0.05780435]
[1644550193394,0.00061464,43280.0,43272.0,0.324735]
[1644550193594,0.00061464,43280.0,43271.0,0.2312322]
[1644550193796,0.29315757,43281.0,43272.0,0.057807]
[1644550193999,0.00060543,43280.0,43274.0,0.05780911]
[1644550194297,0.28847943,43280.0,43274.0,0.05780911]
[1644550195096,0.287874,43280.0,43274.0,0.17341894]
[1644550195496,0.28847944,43280.0,43274.0,0.17341894]
[1644550196297,0.287874,43280.0,43274.0,0.23122294]
[1644550196502,0.28847944,43280.0,43274.0,0.23122294]
[1644550196745,0.28847944,43280.0,43275.0,0.057803]
[1644550196944,0.28847944,43280.0,43275.0,0.11560559]
[1644550197344,0.287874,43280.0,43275.0,0.11560559]
[1644550197744,0.28848864,43280.0,43275.0,0.11560559]
[1644550197945,0.28848864,43280.0,43275.0,0.17340859]
[1644550198646,0.287874,43280.0,43275.0,0.17340859]
[1644550199049,0.287874,43279.0,43275.0,0.17340859]
[1644550199851,0.11820745,43283.0,43276.0,0.07072297]
[1644550200049,0.00061463,43280.0,43277.0,0.05780209]
[1644550201096,0.287874,43282.0,43277.0,0.05780209]
[1644550201295,0.00061464,43281.0,43277.0,0.11560509]
[1644550201497,0.00061464,43281.0,43278.0,0.0578024]
[1644550202396,0.28848864,43282.0,43278.0,0.0578024]
[1644550203497,0.287874,43282.0,43278.0,0.0578024]
[1644550203696,0.33848863,43282.0,43278.0,0.0578024]
[1644550203896,0.05061463,43282.0,43278.0,0.0578024]
[1644550204156,0.287874,43281.0,43278.0,0.01543048]
[1644550205348,0.50036847,43279.0,43278.0,0.01543048]
[1644550206549,0.50036847,43279.0,43276.0,0.05780692]
[1644550207150,0.30563447,43277.0,43276.0,0.05780692]
[1644550209007,0.59350847,43277.0,43276.0,0.05780692]
[1644550209204,0.30563447,43277.0,43276.0,0.063145]
[1644550209404,0.59350847,43277.0,43276.0,0.06848308]
[1644550209609,0.30563447,43277.0,43276.0,0.06848308]
[1644550210305,0.59350847,43277.0,43276.0,0.06848308]
[1644550210505,0.30563447,43277.0,43276.0,0.06848308]
[1644550210705,0.59350847,43277.0,43276.0,0.06848308]
[1644550210905,0.30563447,43277.0,43276.0,0.06848308]
[1644550211308,0.59350847,43277.0,43276.0,0.06848308]
[1644550211506,0.30563447,43277.0,43276.0,0.06848308]
[1644550213358,0.59441601,43277.0,43276.0,0.01067616]
[1644550213563,0.88229001,43277.0,43276.0,0.01067616]
[1644550213860,0.88229001,43277.0,43264.0,0.115617]
[1644550213861,0.46425928,43267.0,43259.0,0.1214]
[1644550214061,0.287874,43272.0,43264.0,0.0200475]
[1644550214259,0.6105473,43272.0,43264.0,0.0200475]
[1644550214459,0.2001026,43265.0,43264.0,0.0200475]
[1644550214664,0.4879766,43265.0,43264.0,0.0200475]
[1644550214859,0.287874,43265.0,43259.0,0.42]
[1644550215059,0.0463,43267.0,43260.0,0.05782217]
[1644550215259,0.0463,43267.0,43259.0,0.42]
[1644550215495,0.0463,43267.0,43260.0,0.05782]
[1644550215694,0.38050288,43267.0,43260.0,0.13036224]
[1644550215896,0.0463,43267.0,43260.0,0.13036224]
[1644550216095,0.1188,43271.0,43261.0,0.11563125]
[1644550216294,0.00044565,43274.0,43267.0,0.06387971]
[1644550216496,0.00044565,43274.0,43268.0,0.115613]
[1644550216497,0.02178678,43270.0,43268.0,0.115613]
[1644550216893,0.02178678,43270.0,43268.0,0.057807]
[1644550217094,0.02178678,43270.0,43268.0,0.11561494]
[1644550218298,0.32045947,43274.0,43268.0,0.11561494]
[1644550218497,0.287874,43273.0,43268.0,0.11561494]
[1644550218896,0.33439809,43272.0,43268.0,0.11561494]
[1644550219150,0.287874,43271.0,43268.0,0.11561494]
[1644550219951,0.287874,43271.0,43268.0,0.05780794]
[1644550221451,0.287874,43271.0,43268.0,0.11562294]
[1644550222556,0.287874,43271.0,43268.0,0.05780794]
[1644550227950,0.287874,43271.0,43268.0,0.11562194]
[1644550231204,0.287874,43269.0,43255.0,0.07815535]
[1644550231405,0.287874,43269.0,43267.0,0.00051159]
[1644550231599,0.60951458,43268.0,43267.0,0.00051159]
[1644550232002,0.81889323,43268.0,43267.0,0.00051159]
[1644550232400,0.81889323,43268.0,43258.0,0.057828]
[1644550232699,0.287874,43267.0,43258.0,0.057828]
[1644550232902,0.057828,43266.0,43258.0,0.057828]
[1644550233099,0.58937779,43265.0,43258.0,0.057828]
[1644550233503,0.36632222,43263.0,43255.0,0.115651]
[1644550233702,0.36632222,43263.0,43256.0,0.324735]
[1644550235055,0.36632222,43263.0,43257.0,0.11565847]
[1644550235457,0.36632222,43263.0,43257.0,0.05782847]
[1644550235855,0.36632222,43263.0,43257.0,0.0577186]
[1644550236258,0.36632222,43263.0,43258.0,0.32529714]
[1644550237259,0.30150379,43265.0,43260.0,0.324735]
[1644550237459,0.30150379,43265.0,43260.0,0.324525]
[1644550238105,0.35933279,43265.0,43260.0,0.324525]
[1644550238303,0.32400608,43263.0,43258.0,0.05782749]
[1644550238503,0.32400608,43263.0,43260.0,0.00056211]
[1644550238904,0.32400608,43263.0,43260.0,0.05838819]
[1644550239204,0.59602756,43263.0,43260.0,0.05838819]
[1644550239605,0.59602756,43263.0,43260.0,0.05782608]
[1644550240709,0.02098778,43265.0,43261.0,0.05782425]
[1644550241106,0.292907,43264.0,43261.0,0.05782425]
[1644550241305,0.292907,43263.0,43261.0,0.05782425]
[1644550241506,0.292907,43264.0,43261.0,0.05782425]
[1644550241749,0.93533028,43264.0,43261.0,0.05782425]
[1644550243555,0.287907,43263.0,43261.0,0.05782425]
[1644550244252,0.64742328,43264.0,43261.0,0.05782425]
[1644550244451,0.66725538,43264.0,43261.0,0.05782425]
[1644550246197,0.287907,43263.0,43261.0,0.05782425]
[1644550247299,0.64742328,43264.0,43261.0,0.05782425]
[1644550247699,0.02155144,43265.0,43262.0,0.0578181]
[1644550248301,0.02155144,43265.0,43263.0,0.49739262]
[1644550248505,1.030683,43266.0,43265.0,0.08998756]
[1644550248702,1.030683,43266.0,43265.0,0.77673189]
[1644550248899,1.030683,43266.0,43265.0,0.87673189]
[1644550249153,1.030683,43266.0,43265.0,0.56451256]
[1644550250149,1.030683,43266.0,43265.0,0.62231956]
[1644550250750,1.030683,43266.0,43265.0,0.62224]
[1644550253505,1.030683,43266.0,43265.0,0.382332]
[1644550255505,1.03040478,43266.0,43265.0,0.382332]
[1644550258351,1.03040478,43266.0,43265.0,0.40123693]
[1644550262404,1.03040478,43266.0,43265.0,0.42014186]
[1644550262602,1.03040478,43266.0,43265.0,0.40123693]
[1644550264249,1.03040478,43266.0,43265.0,0.42014186]
[1644550264449,1.03040478,43266.0,43265.0,0.40123693]
[1644550265049,1.03040478,43266.0,43265.0,0.34342993]
[1644550265249,1.03040478,43266.0,43265.0,0.01890493]
[1644550266251,1.03040478,43266.0,43265.0,0.03780986]
[1644550266451,1.03040478,43266.0,43265.0,0.01890493]
[1644550268411,1.03040478,43266.0,43265.0,0.03780986]
[1644550268610,1.03040478,43266.0,43265.0,0.01890493]
[1644550270312,1.03040478,43266.0,43265.0,0.03780986]
[1644550270513,1.03040478,43266.0,43265.0,0.01890493]
[1644550272649,1.03040478,43266.0,43265.0,0.34342993]
[1644550274450,1.03040478,43266.0,43265.0,0.36233486]
[1644550274652,1.03040478,43266.0,43265.0,0.34342993]
[1644550276904,1.03040478,43266.0,43265.0,0.36233486]
[1644550277104,1.03040478,43266.0,43265.0,0.3433651]
[1644550277804,1.03040478,43266.0,43265.0,0.3933651]
[1644550278407,1.03040478,43266.0,43265.0,0.41227003]
[1644550278608,0.50322592,43266.0,43265.0,0.3933651]
[1644550278810,0.50322592,43266.0,43265.0,0.3433651]
[1644550279771,0.50322592,43266.0,43265.0,0.3933651]
[1644550280371,0.50322592,43266.0,43265.0,0.41227003]
[1644550280571,0.50322592,43266.0,43265.0,0.3933651]
[1644550280774,0.50322592,43266.0,43265.0,0.3433651]
[1644550282374,0.50322592,43266.0,43265.0,0.36227003]
[1644550282577,0.50322592,43266.0,43265.0,0.3433651]
[1644550283807,0.50322592,43266.0,43265.0,0.3933651]
[1644550285010,0.50322592,43266.0,43265.0,0.41227003]
[1644550285214,0.50322592,43266.0,43265.0,0.3933651]
[1644550286413,0.50322592,43266.0,43265.0,0.41227003]
[1644550286657,0.50322592,43266.0,43265.0,0.66476477]
[1644550286954,0.50322592,43266.0,43265.0,0.76476477]
[1644550286955,0.40351202,43266.0,43265.0,0.76476477]
[1644550287154,0.00058515,43274.0,43266.0,0.95]
[1644550287354,0.00058515,43274.0,43269.0,0.05778713]
[1644550287555,0.00058515,43274.0,43270.0,0.848879]
[1644550287756,0.00058515,43274.0,43271.0,0.05]
[1644550287953,0.42,43278.0,43272.0,0.324481]
[1644550288154,0.00058517,43274.0,43271.0,0.05]
[1644550288356,0.00058517,43274.0,43272.0,0.382274]
[1644550288555,0.00058517,43274.0,43273.0,0.324481]
[1644550289053,0.42,43280.0,43274.0,0.057794]
[1644550289254,0.00054145,43276.0,43275.0,0.057794]
[1644550289453,0.00054145,43276.0,43275.0,0.382275]
[1644550290254,0.42,43281.0,43276.0,0.057794]
[1644550290507,0.42,43281.0,43278.0,0.08029305]
[1644550291105,0.42,43281.0,43278.0,0.13808805]
[1644550291404,0.42,43281.0,43279.0,0.057794]
[1644550291605,0.42,43281.0,43279.0,0.115589]
[1644550292506,0.42,43281.0,43279.0,0.45897493]
[1644550292708,0.42,43281.0,43279.0,0.13449393]
[1644550293211,0.42,43281.0,43280.0,0.324481]
[1644550293407,0.0005448,43282.0,43280.0,0.7685978]
[1644550293608,0.0005448,43282.0,43281.0,0.71258932]
[1644550293809,0.02,43284.0,43281.0,0.71258932]
[1644550294263,0.0005448,43283.0,43281.0,0.71258932]
[1644550294462,0.0005448,43283.0,43281.0,0.73149425]
[1644550294665,0.0005448,43283.0,43282.0,0.31369532]
[1644550294862,0.0005448,43283.0,43282.0,0.382266]
[1644550295063,0.02,43284.0,43283.0,0.057787]
[1644550296266,0.01972182,43284.0,43283.0,0.057787]
[1644550296463,0.01972182,43284.0,43283.0,0.07669193]
[1644550298404,0.01972182,43284.0,43283.0,0.09559686]
[1644550300608,0.01972182,43284.0,43283.0,0.40117293]
[1644550301868,0.01972182,43284.0,43283.0,0.59747293]
[1644550302066,0.01972182,43284.0,43283.0,0.93035634]
[1644550302465,0.01972182,43284.0,43283.0,0.94926127]
[1644550302665,0.01972182,43284.0,43283.0,0.93035634]
[1644550302867,0.01972182,43284.0,43283.0,0.59747293]
[1644550304468,0.01972182,43284.0,43283.0,0.61637786]
[1644550305169,0.01964408,43284.0,43283.0,0.61637786]
[1644550305405,0.01964408,43284.0,43283.0,0.578568]
[1644550306208,0.01964408,43284.0,43283.0,0.573568]
[1644550306608,0.01964408,43284.0,43283.0,0.59247293]
[1644550308514,0.065,43285.0,43283.0,0.6691553]
[1644550308713,0.065,43285.0,43284.0,0.440036]
[1644550308911,0.065,43285.0,43284.0,0.540036]
[1644550310554,0.065,43285.0,43284.0,0.55894093]
[1644550312555,0.065,43285.0,43284.0,0.57784586]
[1644550312756,0.065,43285.0,43284.0,0.55894093]
[1644550315206,0.065,43285.0,43284.0,0.57784586]
[1644550315407,0.065,43285.0,43284.0,0.55894093]
[1644550316507,0.065,43285.0,43284.0,0.57784586]
[1644550316757,0.065,43285.0,43284.0,0.55894093]
[1644550320508,0.065,43285.0,43284.0,0.47784586]
[1644550320706,0.065,43285.0,43284.0,0.45894093]
[1644550323207,0.065,43285.0,43284.0,0.47784586]
[1644550323408,0.065,43285.0,43284.0,0.45894093]
[1644550324661,0.065,43285.0,43284.0,0.47784586]
[1644550324858,0.065,43285.0,43284.0,0.45894093]
[1644550327263,0.065,43285.0,43284.0,0.47784586]
[1644550327464,0.065,43285.0,43284.0,0.45894093]
[1644550328611,0.065,43285.0,43284.0,0.47784586]
[1644550328814,0.065,43285.0,43284.0,0.45894093]
[1644550330612,0.065,43285.0,43284.0,0.47784586]
[1644550330913,0.06395658,43285.0,43284.0,0.45894093]
[1644550332760,0.06395658,43285.0,43284.0,0.47784586]
[1644550333060,0.06395658,43285.0,43284.0,0.45894093]
[1644550335265,0.06395658,43285.0,43284.0,0.47784586]
[1644550335512,0.06395658,43285.0,43284.0,0.45894093]
[1644550336612,0.06395658,43285.0,43284.0,0.47784586]
[1644550336815,0.06395658,43285.0,43284.0,0.45894093]
[1644550337216,0.06395658,43285.0,43284.0,0.55894093]
[1644550337414,0.00054411,43287.0,43285.0,1.03905055]
[1644550337617,0.00054411,43287.0,43286.0,0.43366411]
[1644550337816,0.00026604,43287.0,43286.0,0.63366411]
[1644550338014,0.01,43289.0,43287.0,0.95]
[1644550338215,0.01,43289.0,43288.0,0.478542]
[1644550338415,0.01,43289.0,43288.0,0.578542]
[1644550338615,0.02,43294.0,43290.0,0.324481]
[1644550338814,0.02,43294.0,43291.0,0.10406]
[1644550339015,0.02,43294.0,43292.0,0.324481]
[1644550339260,0.02,43294.0,43293.0,0.17232395]
[1644550339459,0.02,43294.0,43293.0,0.49680495]
[1644550339664,0.02,43294.0,43293.0,0.59680495]
[1644550340060,0.02,43294.0,43293.0,0.528542]
[1644550340462,0.02,43294.0,43293.0,0.382242]
[1644550340662,0.307978,43294.0,43293.0,0.01890493]
[1644550340864,0.92453208,43294.0,43293.0,0.01890493]
[1644550341060,0.59973213,43294.0,43293.0,0.01890493]
[1644550341461,0.59973213,43294.0,43280.0,0.173341]
[1644550341661,0.59973213,43294.0,43291.0,0.057783]
[1644550341662,0.28771577,43293.0,43291.0,0.057783]
[1644550341861,0.57569377,43293.0,43291.0,0.057783]
[1644550342562,0.87673795,43293.0,43291.0,0.057783]
[1644550342761,0.30415356,43292.0,43291.0,0.01890493]
[1644550343007,0.287978,43292.0,43291.0,0.01890493]
[1644550343607,0.287978,43291.0,43290.0,0.115563]
[1644550344007,0.287978,43292.0,43290.0,0.115563]
[1644550344809,0.287978,43292.0,43290.0,0.13446793]
[1644550346664,0.287978,43292.0,43290.0,0.15337286]
[1644550346859,0.287978,43292.0,43290.0,0.13446793]
[1644550347059,0.287978,43292.0,43290.0,0.19224944]
[1644550347759,0.277978,43292.0,43290.0,0.19224944]
[1644550347960,0.28771577,43293.0,43290.0,0.19224944]
[1644550348159,0.277998,43292.0,43290.0,0.19224944]
[1644550348360,0.2882634,43293.0,43290.0,0.19224944]
[1644550348763,0.2882634,43293.0,43290.0,0.21115437]
[1644550348961,0.2882634,43293.0,43290.0,0.19224944]
[1644550349161,0.28771577,43293.0,43290.0,0.19224944]
[1644550350806,0.277998,43292.0,43290.0,0.21115437]
[1644550351006,0.277998,43292.0,43290.0,0.19224944]
[1644550352209,0.277998,43292.0,43290.0,0.13446793]
[1644550353511,0.277998,43292.0,43290.0,0.01890493]
[1644550353713,0.57940502,43291.0,43290.0,0.01890493]
[1644550353912,0.62570502,43291.0,43290.0,0.01890493]
[1644550354761,0.62570502,43291.0,43290.0,0.03780986]
[1644550354959,0.62570502,43291.0,43290.0,0.01890493]
[1644550356660,0.62570502,43291.0,43290.0,0.03780986]
[1644550358807,0.62570502,43291.0,43290.0,0.05671479]
[1644550359007,0.62570502,43291.0,43290.0,0.01890493]
[1644550359408,0.0463,43291.0,43290.0,0.01890493]
[1644550359612,0.11767413,43292.0,43290.0,0.01830493]
[1644550359811,0.00058861,43293.0,43290.0,0.01830493]
[1644550360010,0.02,43294.0,43290.0,0.01830493]
[1644550360210,0.02,43294.0,43291.0,0.39700607]